bitfinex/quotes_ETHUSD_20250426
["timestamp","ask_amount","ask_price","bid_price","bid_amount"]
[1745687532282,4.641,1803.5,1803.2,5.54549002]
[1745687532448,4.641,1803.5,1803.2,5.54569653]
[1745687532741,4.641,1803.5,1803.2,6.25755077]
[1745687533481,4.641,1803.5,1803.2,11.8032473]
[1745687533876,4.641,1803.5,1803.3,5.54533775]
[1745687534094,6.80948409,1803.8,1803.4,0.794]
[1745687534286,4.641,1803.5,1803.4,6.33893472]
[1745687534479,4.641,1803.5,1803.4,7.04056884]
[1745687536267,4.641,1803.5,1803.4,6.33893472]
[1745687536467,4.641,1803.5,1803.4,5.54493472]
[1745687547104,4.641,1803.5,1803.3,5.54519054]
[1745687547305,5.4511,1803.5,1803.3,5.54519054]
[1745687547907,5.4511,1803.5,1803.2,5.54551253]
[1745687549103,12.09544696,1803.5,1803.1,5.64584869]
[1745687549406,12.09544696,1803.5,1803.1,5.645766]
[1745687549407,6.55066642,1803.5,1803.1,5.645766]
[1745687550271,6.55066642,1803.5,1803.2,5.5454991]
[1745687555177,11.28534447,1803.5,1803.1,5.64585427]
[1745687555476,1.68913639,1803.4,1803.1,5.64585427]
[1745687556913,1.68913639,1803.4,1803.1,0.1]
[1745687556914,5.54561252,1803.3,1803.1,0.1]
[1745687557227,0.8252,1803.2,1803.1,0.1]
[1745687570026,6.37089653,1803.2,1803.1,0.1]
[1745687570228,0.8252,1803.2,1803.1,0.1]
[1745687570406,1.46227856,1803.2,1803.1,0.1]
[1745687570828,7.00797509,1803.2,1803.1,0.1]
[1745687574744,7.01497509,1803.2,1803.1,0.1]
[1745687575936,13.01435918,1803.2,1803.1,0.1]
[1745687579719,17.65635918,1803.2,1803.1,0.1]
[1745687584375,5.99938409,1803.2,1803.1,0.1]
[1745687584545,10.64138409,1803.2,1803.1,0.1]
[1745687586261,16.18708062,1803.2,1803.1,0.1]
[1745687586564,16.99218062,1803.2,1803.1,0.1]
[1745687587571,10.99279653,1803.2,1803.1,0.1]
[1745687588835,20.63318711,1803.2,1803.1,0.1]
[1745687590238,20.63318711,1803.2,1802.1,0.8651]
[1745687590239,5.54799551,1802.5,1802.1,0.8651]
[1745687590438,4.642,1802.4,1802.1,6.4141811]
[1745687590638,4.642,1802.4,1802.1,6.41413958]
[1745687591150,0.7687,1802.3,1802.1,0.1]
[1745687591573,4.642,1802.4,1802.1,0.8651]
[1745687593372,4.642,1802.4,1802.1,6.41405406]
[1745687593677,4.642,1802.4,1802.2,5.54861926]
[1745687594053,4.642,1802.4,1802.2,5.5485326]
[1745687594366,4.642,1802.4,1802.2,11.09707904]
[1745687594568,4.642,1802.4,1802.3,7.04027233]
[1745687594940,4.642,1802.4,1802.3,6.36286584]
[1745687596951,4.642,1802.4,1802.3,7.04027233]
[1745687598078,4.642,1802.4,1802.3,6.36286584]
[1745687600882,4.643,1802.7,1802.5,5.54776584]
[1745687601580,4.643,1802.7,1802.4,5.54797985]
[1745687601872,5.54810724,1802.5,1802.1,5.64907032]
[1745687608081,5.54810724,1802.5,1802.1,0.1]
[1745687608279,5.5478502,1802.5,1802.1,0.1]
[1745687608588,0.7721,1802.3,1802.1,0.1]
[1745687608748,4.643,1802.2,1802.1,0.1]
[1745687609766,4.643,1802.2,1802.1,5.64908162]
[1745687610284,4.643,1802.2,1802.1,0.1]
[1745687623216,10.73328372,1802.2,1802.1,0.1]
[1745687624712,5.18451,1802.2,1802.1,0.1]
[1745687628332,4.643,1802.2,1802.1,0.1]
[1745687630822,10.19177372,1802.2,1802.1,0.1]
[1745687632834,4.643,1802.2,1802.1,0.1]
[1745687634832,10.95257372,1802.2,1802.1,0.1]
[1745687635034,13.95257372,1802.2,1802.1,0.1]
[1745687635340,20.6293643,1802.2,1802.1,0.1]
[1745687636330,21.03969952,1802.2,1802.1,0.1]
[1745687636503,19.95195781,1802.2,1802.1,0.1]
[1745687639045,16.95195781,1802.2,1802.1,0.1]
[1745687643620,10.64238409,1802.2,1802.1,0.1]
[1745687646346,4.643,1802.2,1802.1,0.1]
[1745687653752,5.5484809,1802.3,1802.1,0.1]
[1745687653965,4.643,1802.2,1802.1,0.1]
[1745687656848,4.643,1802.2,1802.1,0.8656]
[1745687657198,4.643,1802.2,1802.1,6.41468162]
[1745687657350,4.643,1802.2,1802.1,0.8656]
[1745687659577,4.643,1802.2,1802.1,6.41468162]
[1745687661984,4.643,1802.2,1802.1,0.8656]
[1745687670003,16.661,1802.6,1802.4,5.54815115]
[1745687670175,4.643,1802.5,1802.4,6.35415115]
[1745687679388,4.643,1802.5,1802.4,7.64875918]
[1745687684537,4.643,1802.5,1802.4,6.35415115]
[1745687684700,4.643,1802.5,1802.4,7.64875918]
[1745687684905,11.44390776,1802.5,1802.1,5.64896823]
[1745687685108,11.44390776,1802.5,1802.1,5.649057]
[1745687686415,11.44390776,1802.5,1802.2,5.54874885]
[1745687686416,5.896,1802.5,1802.2,5.54874885]
[1745687687342,5.896,1802.5,1802.1,5.64888561]
[1745687687653,0.5896,1802.4,1802.1,5.64888561]
[1745687690644,11.44389517,1802.5,1802.1,5.64888561]
[1745687691550,5.896,1802.5,1802.1,5.64886937]
[1745687692753,5.896,1802.5,1802.1,11.19772021]
[1745687693243,5.896,1802.5,1802.1,5.64885084]
[1745687693750,5.896,1802.5,1802.1,11.19768421]
[1745687694318,5.896,1802.5,1802.1,5.64883337]
[1745687695753,5.896,1802.5,1802.2,5.54865564]
[1745687700353,5.896,1802.5,1802.3,5.54823191]
[1745687700523,4.643,1802.5,1802.4,5.54815801]
[1745687708127,4.643,1802.5,1802.4,6.33735801]
[1745687709664,4.643,1802.5,1802.4,7.63068189]
[1745687709868,4.643,1802.5,1802.4,8.94857327]
[1745687710076,2.26228515,1803.1,1803.0,5.5463117]
[1745687710570,2.26228515,1803.1,1803.0,6.83963558]
[1745687713077,4.64,1803.2,1803.0,6.8394537]
[1745687713663,4.64,1803.2,1803.0,5.54612982]
[1745687713865,4.64,1803.2,1803.0,11.09221441]
[1745687714734,4.64,1803.2,1803.1,5.5460041]
[1745687717035,4.64,1803.2,1803.1,6.65521297]
[1745687718774,4.64,1803.2,1803.0,5.54608459]
[1745687719976,4.64,1803.2,1803.0,11.09216563]
[1745687720140,4.64,1803.2,1803.0,5.54608104]
[1745687720441,4.64,1803.2,1803.1,5.5460041]
[1745687726680,4.64,1803.2,1803.1,6.22472737]
[1745687726884,4.64,1803.2,1803.1,11.15360821]
[1745687728281,4.64,1803.2,1803.1,11.56199375]
[1745687729087,4.638,1803.5,1803.4,5.54484721]
[1745687731296,5.4459,1803.5,1803.1,4.92888084]
[1745687731590,5.4459,1803.5,1803.2,5.5455056]
[1745687731791,5.4459,1803.5,1803.2,11.09096893]
[1745687732486,5.4459,1803.5,1803.2,5.54546333]
[1745687732692,5.4459,1803.5,1803.3,5.54531555]
[1745687733369,5.4459,1803.5,1803.2,5.54546333]
[1745687733581,5.4459,1803.5,1803.2,12.50009331]
[1745687733891,5.4459,1803.5,1803.3,5.54536618]
[1745687734450,5.4459,1803.5,1803.2,6.95471918]
[1745687734757,5.4459,1803.5,1803.2,5.54558214]
[1745687737183,5.4459,1803.5,1803.3,5.54537054]
[1745687737690,5.4459,1803.5,1803.2,5.54551445]
[1745687738193,12.08977503,1803.5,1803.1,5.54588056]
[1745687738603,6.35771555,1803.2,1802.8,5.54678179]
[1745687738893,0.7895,1802.9,1802.5,0.7616]
[1745687739207,10.18404171,1802.8,1802.4,5.54812612]
[1745687739355,5.54775997,1802.6,1802.1,6.41054379]
[1745687739559,5.54785349,1802.5,1802.1,0.74105438]
[1745687739754,4.637,1802.4,1802.1,6.28999075]
[1745687739956,4.637,1802.4,1802.1,6.96872449]
[1745687740176,4.637,1802.4,1802.1,6.29000122]
[1745687740381,4.637,1802.4,1802.1,5.64890696]
[1745687740585,4.637,1802.4,1802.2,5.54861711]
[1745687743306,4.637,1802.4,1802.3,5.54846584]
[1745687743512,4.637,1802.4,1802.3,6.22718911]
[1745687743695,4.637,1802.4,1802.3,7.48092973]
[1745687746810,4.637,1802.4,1802.3,6.80220646]
[1745687747017,4.637,1802.4,1802.3,7.48092973]
[1745687752936,16.651,1803.0,1802.7,5.54697514]
[1745687753135,4.638,1802.9,1802.8,5.546927]
[1745687753521,4.638,1802.9,1802.8,6.80032954]
[1745687763165,4.638,1802.9,1802.8,9.80032954]
[1745687767418,5.54461111,1803.6,1803.0,0.789]
[1745687767419,0.797,1803.6,1803.0,0.789]
[1745687767618,4.637,1803.5,1803.4,5.54481256]
[1745687767984,4.637,1803.5,1803.3,5.54527656]
[1745687768523,4.637,1803.5,1803.3,5.54517231]
[1745687768713,4.637,1803.5,1803.4,5.54508151]
[1745687769597,4.637,1803.5,1803.4,6.61652178]
[1745687776837,4.587,1803.5,1803.4,6.61652178]
[1745687782391,5.355,1803.5,1803.0,0.8259]
[1745687782605,5.355,1803.5,1803.3,5.54527672]
[1745687782804,5.355,1803.5,1803.4,5.54508151]
[1745687783438,4.587,1803.5,1803.4,5.54508151]
[1745687786943,4.587,1803.5,1803.2,6.37143202]
[1745687787151,0.768,1803.4,1803.3,5.545389]
[1745687789059,4.587,1803.5,1803.4,5.54508151]
[1745687791479,4.587,1803.5,1803.3,5.54522236]
[1745687791765,4.587,1803.5,1803.2,5.545547]
[1745687791766,0.7992,1803.4,1803.2,5.545547]
[1745687791969,0.7992,1803.4,1803.2,5.54551404]
[1745687792173,0.7992,1803.4,1803.3,5.545389]
[1745687793072,0.7992,1803.4,1803.1,6.22459017]
[1745687793239,6.34431389,1803.4,1803.0,5.54609762]
[1745687793438,0.7992,1803.4,1803.0,6.65535567]
[1745687793624,0.7992,1803.4,1803.1,5.54588403]
[1745687795723,0.7992,1803.4,1803.1,11.09166471]
[1745687795922,0.7992,1803.4,1803.1,5.54578068]
[1745687796121,0.7992,1803.4,1803.2,5.54549835]
[1745687796354,0.7992,1803.4,1803.3,5.545389]
[1745687796625,0.7992,1803.4,1803.2,5.54556327]
[1745687798060,0.7992,1803.4,1803.3,5.545389]
[1745687798434,0.8272,1803.6,1803.4,5.54504355]
[1745687798746,4.635,1803.5,1803.4,5.54504355]
[1745687798951,4.635,1803.6,1803.5,5.544732]
[1745687807462,4.635,1803.6,1803.5,6.311932]
[1745687807650,4.635,1803.8,1803.5,2.02076988]
[1745687807993,0.7949,1804.1,1803.8,5.54371297]
[1745687808157,4.635,1804.0,1803.8,5.54371297]
[1745687808686,0.7949,1803.9,1803.7,5.54396374]
[1745687812357,0.7949,1803.9,1803.7,5.54392132]
[1745687812555,0.7949,1803.9,1803.8,5.54385186]
[1745687812886,4.634,1803.9,1803.8,5.54370915]
[1745687815399,4.634,1803.9,1803.8,6.31090915]
[1745687816018,4.634,1803.9,1803.8,5.54370915]
[1745687821637,4.634,1803.9,1803.7,6.09833924]
[1745687821782,4.634,1803.9,1803.7,5.54394711]
[1745687821985,4.634,1803.9,1803.8,5.54385186]
[1745687824625,4.634,1803.9,1803.8,6.99567513]
[1745687827225,4.634,1803.9,1803.8,6.31695186]
[1745687827597,4.634,1803.9,1803.8,5.54385186]
[1745687828117,4.634,1803.9,1803.8,6.65263104]
[1745687829230,4.634,1803.9,1803.8,7.45463104]
[1745687833731,4.634,1803.9,1803.6,5.54429701]
[1745687833892,0.7603,1803.8,1803.5,5.54459636]
[1745687835233,0.7603,1803.8,1803.5,11.08916683]
[1745687835431,0.7603,1803.8,1803.5,5.54457047]
[1745687835621,6.30417538,1803.8,1803.4,5.54491842]
[1745687835797,0.7603,1803.8,1803.4,5.54491842]
[1745687835998,0.7603,1803.8,1803.4,11.08977769]
[1745687836222,1.85410057,1803.8,1803.4,5.54485927]
[1745687836529,6.63769996,1803.8,1803.4,5.54485927]
[1745687836835,0.7603,1803.7,1803.4,5.54485927]
[1745687838300,0.7603,1803.7,1803.5,5.54475307]
[1745687842698,5.4469,1803.9,1803.7,5.54393427]
[1745687842904,5.99159,1803.9,1803.6,5.5442688]
[1745687843103,5.4469,1803.9,1803.6,5.5442688]
[1745687843663,5.4469,1803.9,1803.6,5.54423052]
[1745687843962,5.4469,1803.9,1803.3,5.54535601]
[1745687843963,0.8243,1803.6,1803.3,5.54521617]
[1745687844269,4.634,1803.5,1803.3,5.54521617]
[1745687845572,4.634,1803.5,1803.1,5.54577277]
[1745687845779,0.8243,1803.4,1803.1,5.54577277]
[1745687848268,0.8243,1803.4,1803.2,5.54558277]
[1745687850775,0.8243,1803.4,1803.1,5.54581117]
[1745687850933,0.8243,1803.4,1803.0,5.54608984]
[1745687851137,6.36942643,1803.4,1803.0,5.54608984]
[1745687851886,5.54540367,1803.3,1802.9,5.54648598]
[1745687852174,0.7589,1803.2,1803.0,5.54611648]
[1745687852342,4.634,1803.1,1803.0,5.54611648]
[1745687853932,4.634,1803.1,1803.0,6.31971648]
[1745687854133,4.634,1803.1,1803.0,7.57420882]
[1745687855228,4.634,1803.1,1803.0,6.80060882]
[1745687856471,4.634,1803.1,1803.0,7.57420882]
[1745687856681,4.634,1803.4,1803.3,5.545389]
[1745687856839,4.634,1803.4,1803.3,6.318989]
[1745687857034,4.634,1803.4,1803.3,7.57331863]
[1745687857649,0.7853,1803.8,1803.7,5.54415922]
[1745687857957,4.634,1803.8,1803.7,5.54415922]
[1745687858397,16.65,1804.2,1803.6,6.99668167]
[1745687858398,4.634,1803.9,1803.6,6.99668167]
[1745687858689,4.634,1803.9,1803.6,1.45232327]
[1745687858976,4.634,1803.9,1803.8,5.54385186]
[1745687859135,4.634,1803.9,1803.8,6.65264241]
[1745687869038,5.4478,1803.9,1803.7,5.5439717]
[1745687869684,5.4478,1803.9,1803.7,5.54394207]
[1745687870518,5.4478,1803.9,1803.8,5.54385186]
[1745687870932,5.4478,1803.9,1803.7,5.54402939]
[1745687871501,5.4478,1803.9,1803.7,5.54395464]
[1745687871822,5.4478,1803.9,1803.8,5.54385186]
[1745687873221,5.4478,1803.9,1803.7,5.54396497]
[1745687873385,5.4478,1803.9,1803.7,11.08792994]
[1745687873917,5.4478,1803.9,1803.8,5.54385186]
[1745687874124,4.634,1803.9,1803.8,5.54385186]
[1745687875240,4.634,1803.9,1803.7,5.5439696]
[1745687875602,4.634,1803.9,1803.7,11.08789111]
[1745687876098,4.634,1803.9,1803.7,5.54392151]
[1745687876637,4.634,1803.9,1803.7,11.08785832]
[1745687876830,4.634,1803.9,1803.7,11.0878699]
[1745687877655,4.634,1803.9,1803.8,5.54385186]
[1745687881455,4.634,1803.9,1803.8,6.7354692]
[1745687883345,4.634,1803.9,1803.8,5.54385186]
[1745687885045,5.4096,1803.9,1803.8,5.54385186]
[1745687885542,4.634,1803.9,1803.8,5.54385186]
[1745687886657,4.634,1803.9,1803.8,6.30105186]
[1745687888279,4.634,1803.9,1803.8,5.54385186]
[1745687890585,0.7915,1803.8,1803.5,5.54466131]
[1745687890787,0.7915,1803.8,1803.5,5.54454828]
[1745687890977,0.7915,1803.8,1803.6,5.54442688]
[1745687892363,0.7915,1803.8,1803.7,5.54415922]
[1745687892779,4.634,1803.9,1803.8,5.54385186]
[1745687893465,4.634,1803.9,1803.8,6.65265297]
[1745687893889,4.634,1803.9,1803.8,7.48245297]
[1745687895707,4.632,1804.2,1804.1,5.54292999]
[1745687897091,0.7722,1804.1,1804.0,5.54309913]
[1745687897491,4.632,1804.2,1804.1,5.54292999]
[1745687898200,4.632,1804.2,1804.0,5.54309913]
[1745687898407,5.17242,1804.2,1804.0,5.54309913]
[1745687899674,5.17242,1804.2,1804.1,5.54292999]
[1745687899675,4.632,1804.2,1804.1,5.54292999]
[1745687901914,4.632,1804.2,1804.1,6.31502999]
[1745687907819,17.4189,1804.5,1804.1,6.31502999]
[1745687908122,21.278,1804.5,1804.3,5.54212241]
[1745687908333,21.278,1804.5,1804.3,6.65058419]
[1745687909059,21.278,1804.5,1804.3,1.10846178]
[1745687909218,0.7888,1804.4,1804.1,11.08558706]
[1745687909417,0.7888,1804.4,1804.2,5.54260031]
[1745687911555,0.7888,1804.4,1804.1,5.54272843]
[1745687911556,0.7888,1804.4,1804.1,5.54276219]
[1745687911740,0.7888,1804.4,1804.2,5.54245841]
[1745687912759,21.278,1804.5,1804.3,5.54229496]
[1745687914160,21.278,1804.5,1804.4,5.54200842]
[1745687917151,4.632,1804.5,1804.4,5.54200842]
[1745687920988,4.632,1804.5,1804.3,5.54211951]
[1745687921289,4.632,1804.5,1804.4,5.54200842]
[1745687924682,4.632,1804.5,1804.4,6.65042121]
[1745687925182,4.632,1804.5,1804.4,7.40802121]
[1745687926908,5.3997,1804.5,1804.4,1.10841279]
[1745687927120,4.632,1804.5,1804.4,5.54200842]
[1745687929847,0.8299,1804.4,1803.8,0.829]
[1745687929987,0.8299,1804.4,1803.9,5.54354454]
[1745687930192,0.8299,1804.4,1804.2,5.54252329]
[1745687931133,0.8299,1804.4,1804.1,5.54273549]
[1745687932032,0.8299,1804.4,1804.2,5.54259089]
[1745687932242,4.632,1804.5,1804.3,5.54231557]
[1745687932545,4.632,1804.5,1804.3,5.54207046]
[1745687933734,4.632,1804.5,1804.2,5.54243322]
[1745687934434,4.632,1804.5,1804.2,11.08485007]
[1745687934623,4.632,1804.5,1804.2,6.84465838]
[1745687934796,4.632,1804.5,1804.2,5.54241482]
[1745687935638,4.632,1804.5,1804.2,5.54262276]
[1745687935937,4.632,1804.5,1804.2,5.54240167]
[1745687936242,4.632,1804.5,1804.3,5.54229991]
[1745687936608,4.632,1804.5,1804.4,5.54200842]
[1745687936822,4.632,1804.5,1804.4,7.47383925]
[1745687938159,4.632,1804.5,1804.4,6.65043925]
[1745687941182,4.632,1804.5,1804.4,5.54200842]
[1745687944462,4.632,1804.5,1804.4,6.36540842]
[1745687944697,0.1,1804.9,1804.7,5.54078589]
[1745687944974,4.73,1804.9,1804.7,5.54090711]
[1745687945911,4.73,1804.9,1804.6,5.54139385]
[1745687946400,4.73,1804.9,1804.6,5.54127591]
[1745687946990,4.73,1804.9,1804.7,5.54105061]
[1745687947197,4.73,1804.9,1804.8,5.54078014]
[1745687947570,4.73,1804.9,1804.7,5.54105061]
[1745687948163,4.73,1804.9,1804.8,5.54078014]
[1745687948901,4.73,1804.9,1804.7,5.54090801]
[1745687949099,4.73,1804.9,1804.7,6.84228951]
[1745687949291,4.73,1804.9,1804.8,5.54078014]
[1745687952361,4.73,1804.9,1804.7,5.54086969]
[1745687952561,4.73,1804.9,1804.8,5.54078014]
[1745687958815,0.1,1804.9,1804.8,5.54078014]
[1745687959017,0.1,1804.9,1804.8,11.19116774]
[1745687959315,0.1,1804.9,1804.8,11.13576839]
[1745687962747,1e-08,1804.9,1804.8,11.19115935]
[1745687963127,1e-08,1804.9,1804.8,11.13576839]
[1745687968062,1e-08,1804.9,1804.8,11.19115897]
[1745687969085,1e-08,1804.9,1804.8,11.13576839]
[1745687972167,1e-08,1804.9,1804.8,11.19115704]
[1745687972688,1e-08,1804.9,1804.8,11.19115639]
[1745687973384,1e-08,1804.9,1804.8,11.74115639]
[1745687973684,1e-08,1804.9,1804.8,11.68576839]
[1745687975333,1e-08,1804.9,1804.8,6.64894512]
[1745687975479,1e-08,1804.9,1804.8,5.54078014]
[1745687975653,1e-08,1804.9,1804.7,5.54087135]
[1745687975852,1e-08,1804.9,1804.4,0.41621616]
[1745687975853,0.7674,1804.8,1804.4,0.41621616]
[1745687976073,0.7674,1804.8,1804.6,5.54123479]
[1745687976281,0.7674,1804.8,1804.6,5.54117021]
[1745687976589,0.7674,1804.8,1804.4,3.0]
[1745687976767,0.7674,1804.8,1804.7,5.54108716]
[1745687977392,0.7674,1804.8,1804.6,5.54109272]
[1745687977393,0.7674,1804.8,1804.6,5.54120943]
[1745687978659,0.7674,1804.8,1804.4,8.5417218]
[1745687978858,0.7674,1804.8,1804.5,5.54167113]
[1745687979454,0.7674,1804.8,1804.3,6.0]
[1745687979689,0.7674,1804.8,1804.6,5.54113349]
[1745687980076,0.7674,1804.8,1804.6,5.54127783]
[1745687981994,0.7674,1804.8,1804.4,6.14177393]
[1745687982299,4.628,1804.7,1804.4,6.14187113]
[1745687982524,4.628,1804.7,1804.4,5.54187113]
[1745687982729,0.7674,1804.6,1804.1,0.67872327]
[1745687983003,0.7674,1804.4,1804.0,5.54311042]
[1745687983300,4.628,1804.3,1804.0,5.54304826]
[1745687983457,4.628,1804.3,1804.0,6.65169593]
[1745687983652,4.628,1804.3,1804.0,12.19471016]
[1745687983858,4.628,1804.3,1804.0,6.6516619]
[1745687984101,4.628,1804.3,1804.0,5.54301423]
[1745687984559,4.628,1804.3,1804.0,11.08602069]
[1745687984894,4.628,1804.3,1804.0,5.54300646]
[1745687985103,4.628,1804.3,1804.0,5.5429801]
[1745687985605,4.628,1804.3,1804.1,5.5428889]
[1745687986229,4.628,1804.3,1804.0,5.54306624]
[1745687986855,4.628,1804.3,1804.0,5.54298846]
[1745687987176,4.628,1804.3,1804.1,5.54284389]
[1745687991412,4.628,1804.3,1804.1,11.08554821]
[1745687991877,4.628,1804.3,1804.1,5.54270432]
[1745687992078,4.628,1804.3,1804.1,11.0854671]
[1745687992603,4.628,1804.3,1804.1,5.54270432]
[1745687993704,4.628,1804.3,1804.1,11.08539054]
[1745687994125,4.628,1804.3,1804.2,5.54262276]
[1745687997800,4.628,1804.3,1804.1,5.54279794]
[1745687999327,4.628,1804.3,1804.0,5.54305246]
[1745687999486,4.628,1804.3,1804.0,11.08606139]
[1745688000103,4.628,1804.3,1804.0,11.08604848]
[1745688000344,4.628,1804.3,1803.9,5.5433899]
[1745688000524,0.8309,1804.1,1803.7,5.83311422]
[1745688000735,6.37384634,1804.1,1803.7,5.83311422]
[1745688000933,0.8309,1804.1,1803.8,5.54382145]
[1745688001532,0.8309,1804.1,1803.7,5.54396615]
[1745688001755,0.8309,1803.9,1803.4,5.54484843]
[1745688001907,5.4599,1803.8,1803.4,11.08968261]
[1745688002230,5.4599,1803.8,1803.5,5.54453884]
[1745688002435,5.4599,1803.8,1803.6,5.54446371]
[1745688003239,5.4599,1803.8,1803.5,5.54460291]
[1745688003831,0.8309,1803.7,1803.5,5.54474765]
[1745688004018,0.8309,1803.7,1803.4,5.54492287]
[1745688004216,0.8309,1803.7,1803.4,12.4988011]
[1745688004415,0.8309,1803.7,1803.3,5.54527584]
[1745688005009,0.8309,1803.6,1803.3,5.54527584]
[1745688005209,0.8309,1803.6,1803.3,5.54517958]
[1745688005742,0.8309,1803.4,1803.0,6.80071412]
[1745688005915,5.4609,1803.4,1803.1,5.54592568]
[1745688006119,5.4609,1803.4,1803.0,5.54622178]
[1745688006323,6.37641409,1803.3,1802.9,5.54647929]
[1745688006511,6.37641409,1803.3,1802.8,5.54677339]
[1745688007041,12.37579818,1803.3,1802.8,5.54677339]
[1745688007339,13.1623874,1803.3,1802.8,5.54677339]
[1745688007539,6.83028409,1803.3,1803.0,5.54628062]
[1745688007710,6.83028409,1803.3,1803.1,5.5459717]
[1745688008343,6.83028409,1803.3,1803.0,5.54614806]
[1745688008939,6.83028409,1803.3,1802.9,5.54648284]
[1745688008940,5.99938409,1803.3,1802.9,5.54647055]
[1745688009157,0.8292,1803.2,1802.9,5.54647055]
[1745688009304,0.8292,1803.2,1802.6,0.8091]
[1745688009510,0.8292,1802.9,1802.6,5.54736897]
[1745688009748,5.4602,1802.9,1802.6,5.54736897]
[1745688010407,5.4602,1802.9,1802.5,5.54762299]
[1745688010752,5.4602,1802.9,1802.6,5.54740249]
[1745688011113,5.4602,1802.9,1802.6,11.09472463]
[1745688011452,0.8292,1802.8,1802.3,0.28912422]
[1745688011624,0.8292,1802.8,1802.4,5.54795099]
[1745688011812,6.37624312,1802.8,1802.3,5.54823288]
[1745688012007,6.37624312,1802.8,1802.4,5.54814244]
[1745688012432,6.37665776,1802.7,1802.2,11.09715575]
[1745688012633,0.8292,1802.6,1802.2,5.54851985]
[1745688012839,4.632,1802.5,1802.2,5.54851985]
[1745688013040,4.632,1802.5,1802.1,5.64889264]
[1745688013519,4.632,1802.5,1802.2,5.54874242]
[1745688015464,4.632,1802.5,1802.2,5.54862286]
[1745688015618,4.632,1802.5,1802.3,5.54816296]
[1745688017462,4.632,1802.5,1802.4,5.54815801]
[1745688017628,4.632,1802.5,1802.3,5.54822778]
[1745688018556,4.632,1802.5,1802.3,5.5481929]
[1745688019074,4.632,1802.5,1802.4,5.54815801]
[1745688019683,4.632,1802.5,1802.3,5.54828366]
[1745688020143,4.632,1802.5,1802.2,6.11345661]
[1745688020344,4.632,1802.5,1802.2,6.11342545]
[1745688020871,4.632,1802.5,1802.3,5.54831947]
[1745688022477,0.7769,1802.4,1802.1,5.64901942]
[1745688023655,0.7769,1802.4,1802.2,5.54873384]
[1745688027074,0.7769,1802.4,1802.3,5.54846584]
[1745688027378,4.632,1802.5,1802.4,5.54815801]
[1745688034718,5.3851,1802.5,1802.3,5.54846584]
[1745688035019,5.3851,1802.5,1802.2,5.5485771]
[1745688035834,5.3851,1802.5,1802.3,5.54831868]
[1745688036733,5.3851,1802.5,1802.4,5.54815801]
[1745688039640,5.3851,1802.5,1802.3,5.54828491]
[1745688040338,5.3851,1802.5,1802.4,5.54815801]
[1745688040507,5.3851,1802.5,1802.3,5.54823248]
[1745688040844,5.3851,1802.5,1802.4,5.54815801]
[1745688041138,4.632,1802.5,1802.4,5.54815801]
[1745688042246,4.632,1802.5,1802.3,5.54828765]
[1745688042405,4.632,1802.5,1802.4,5.54815801]
[1745688042806,4.632,1802.5,1802.3,5.54827811]
[1745688043375,4.632,1802.5,1802.3,11.09649802]
[1745688043523,4.632,1802.5,1802.4,5.54815801]
[1745688046539,4.632,1802.5,1802.3,5.54830031]
[1745688047250,4.632,1802.5,1802.3,5.5482373]
[1745688047446,4.632,1802.5,1802.4,5.54815801]
[1745688049757,14.54585138,1803.0,1802.6,5.54754243]
[1745688049758,4.634,1802.7,1802.6,5.54754243]
[1745688049958,4.634,1802.7,1802.6,6.34824243]
[1745688050330,16.658,1803.1,1803.0,5.5463117]
[1745688050546,21.292,1803.1,1803.0,5.5463117]
[1745688050751,21.292,1803.1,1802.9,5.54644915]
[1745688051187,21.292,1803.1,1802.8,5.54687102]
[1745688052885,21.292,1803.1,1802.8,11.09338548]
[1745688053098,21.292,1803.1,1802.6,0.8007]
[1745688053099,21.292,1803.1,1802.7,5.54700722]
[1745688053389,21.292,1803.1,1802.9,5.54661933]
[1745688053544,22.0554,1803.1,1802.9,5.54661933]
[1745688054797,22.0554,1803.1,1802.9,5.54637915]
[1745688055002,22.0554,1803.1,1802.9,5.5464642]
[1745688055503,22.0554,1803.1,1802.8,5.54676624]
[1745688055659,22.0554,1803.1,1802.7,5.54705737]
[1745688056499,27.60140712,1803.1,1802.7,5.54705737]
[1745688056696,22.0554,1803.1,1802.7,5.5470251]
[1745688056895,22.0554,1803.1,1802.8,5.54673444]
[1745688057096,22.0554,1803.1,1802.9,5.5466034]
[1745688058608,21.292,1803.1,1803.0,5.5463117]
[1745688059268,22.0867,1803.1,1802.7,0.67872327]
[1745688059467,22.0867,1803.1,1802.9,5.54638856]
[1745688059704,22.0867,1803.1,1802.8,5.54678086]
[1745688060002,22.0867,1803.1,1802.8,5.54670722]
[1745688060518,22.0867,1803.1,1802.9,5.54659756]
[1745688061783,22.0867,1803.1,1803.0,5.5463117]
[1745688061784,4.634,1803.1,1803.0,5.5463117]
[1745688062726,16.655,1803.6,1803.2,5.54569653]
[1745688062892,4.633,1803.5,1803.1,5.54580421]
[1745688063097,0.7947,1803.4,1803.0,5.54605371]
[1745688063299,0.7947,1803.4,1802.8,5.54671233]
[1745688063512,6.3402345,1803.3,1802.9,5.54645184]
[1745688063698,0.7947,1803.2,1802.9,5.54645184]
[1745688063894,4.633,1803.1,1802.9,5.54645184]
[1745688064098,5.99938409,1803.6,1803.0,0.761]
[1745688064296,5.99938409,1803.6,1803.5,5.54477405]
[1745688064297,4.633,1803.6,1803.5,5.54477405]
[1745688064711,4.633,1803.6,1803.5,6.79772112]
[1745688065982,4.633,1803.6,1803.5,7.31435044]
[1745688067201,4.632,1803.8,1803.7,5.54415922]
[1745688067414,4.632,1803.8,1803.7,6.22288249]
[1745688067621,21.286,1804.1,1804.0,5.54323725]
[1745688067805,4.632,1804.1,1804.0,6.30423725]